fUST/lending_fUST_20240501
["ID","MTS","AMOUNT","RATE_DAILY","PERIOD"]
[325134075,1714536638635,-150.0,0.00069,120]
[325134076,1714536638644,-171.343565,0.00069224,120]
[325134077,1714536638652,-333.52401404,0.0007,120]
[325134078,1714536638662,-150.0,0.0007,120]
[325134079,1714536638671,-178.44955265,0.000765,120]
[325134080,1714536638680,-50207.56974977,0.00078,60]
[325134081,1714536638689,-171.343565,0.00078904,120]
[325134082,1714536638699,-163.58997,0.00078904,120]
[325134083,1714536638709,-170.53664524,0.00079796,120]
[325134084,1714536638718,-661.80388598,0.0008,50]
[325134085,1714536638727,-3964.974633,0.0008,2]
[325134086,1714536638736,-1176.37550923,0.0008,120]
[325134087,1714536638746,-3611.09225124,0.0008,120]
[325134088,1714536638755,-250.0,0.0008,120]
[325134089,1714536638765,-12199.369999,0.0008,120]
[325134090,1714536638774,-213.4,0.00085245,120]
[325134092,1714536638784,-151.0,0.00085616,120]
[325134093,1714536638794,-151.0,0.00086685,120]
[325134095,1714536638803,-151.0,0.00087753,120]
[325134098,1714536638816,-5050.69814761,0.00088,120]
[325134100,1714536638826,-171.343565,0.00088584,120]
[325134101,1714536638836,-151.0,0.00088822,120]
[325134104,1714536638846,-1027.0,0.0008989,120]
[325134105,1714536638856,-10000.0,0.00092072,120]
[325134107,1714536638865,-163.58997,0.00093425,120]
[325134109,1714536638874,-152.88481962,0.00095329,120]
[325134111,1714536638883,-171.343565,0.00098265,120]
[325134113,1714536638893,-31561.72778086,0.00098889,120]
[325134115,1714536638902,-150.5,0.0009897,35]
[325134118,1714536638911,-150.5,0.0009898,35]
[325134120,1714536638921,-150.5,0.0009899,35]
[325134122,1714536638931,-1000000.0,0.00099,120]
[325134123,1714536638940,-5059.52399999,0.001,120]
[325134125,1714536638951,-10000.0,0.00101655,120]
[325134127,1714536638961,-507.42172885,0.00105,120]
[325134130,1714536638970,-171.343565,0.00107945,120]
[325134131,1714536638979,-163.58997,0.00107945,120]
[325134133,1714536638989,-152.88481962,0.00109328,120]
[325134135,1714536638998,-156.09900906,0.00109587,14]
[325134138,1714536639008,-155.47112681,0.00109588,14]
[325134139,1714536639018,-461.95922393,0.00109588,120]
[325134142,1714536639027,-500.0,0.00109588,30]
[325134143,1714536639036,-999.0,0.00109588,120]
[325134146,1714536639047,-999.0,0.00109588,120]
[325134148,1714536639057,-999.0,0.00109588,120]
[325134150,1714536639066,-999.0,0.00109588,120]
[325134152,1714536639075,-999.0,0.00109588,120]
[325134154,1714536639085,-999.0,0.00109588,120]
[325134155,1714536639094,-999.0,0.00109588,120]
[325134157,1714536639103,-500.0,0.00109589,120]
[325134160,1714536639113,-500.73480784,0.00109589,120]
[325134161,1714536639122,-503.63761946,0.00109589,120]
[325134163,1714536639132,-536.86226129,0.00109589,120]
[325134165,1714536639141,-505.85986609,0.00109589,120]
[325134167,1714536639150,-500.0,0.00109589,120]
[325134169,1714536639160,-500.0,0.00109589,30]
[325134171,1714536639169,-501.17552555,0.00109589,120]
[325134173,1714536639179,-500.0,0.00109589,120]
[325134175,1714536639188,-500.0,0.00109589,120]
[325134176,1714536639197,-502.73069865,0.00109589,120]
[325134177,1714536639206,-253.29294653,0.00109589,120]
[325134178,1714536639215,-500.0,0.00109589,120]
[325134180,1714536639224,-504.56480262,0.00109589,120]
[325134181,1714536639234,-501.33149807,0.00109589,120]
[325134183,1714536639243,-502.60269969,0.00109589,120]
[325134185,1714536639254,-500.0,0.00109589,120]
[325134186,1714536639263,-500.0,0.00109589,120]
[325134188,1714536639272,-501.58414585,0.00109589,120]
[325134189,1714536639281,-500.0,0.00109589,120]
[325134190,1714536639290,-500.62064658,0.00109589,120]
[325134191,1714536639301,-505.24799679,0.00109589,120]
[325134192,1714536639311,-500.0,0.00109589,120]
[325134193,1714536639321,-502.33767989,0.00109589,120]
[325134194,1714536639330,-501.28039105,0.00109589,120]
[325134195,1714536639338,-593.01124814,0.00109589,120]
[325134196,1714536639349,-500.0,0.00109589,120]
[325134197,1714536639358,-500.51294877,0.00109589,120]
[325134198,1714536639367,-500.0,0.00109589,120]
[325134199,1714536639376,-500.0,0.00109589,120]
[325134200,1714536639385,-500.0,0.00109589,120]
[325134201,1714536639395,-237.09528617,0.00109589,120]
[325134202,1714536639404,-500.0,0.00109589,120]
[325134203,1714536639414,-500.47129775,0.00109589,120]
[325134204,1714536639423,-500.0,0.00109589,120]
[325134205,1714536639432,-502.31896781,0.00109589,120]
[325134206,1714536639448,-501.52643414,0.00109589,120]
[325134207,1714536639456,-500.8313273,0.00109589,120]
[325134208,1714536639465,-501.36513364,0.00109589,120]
[325134209,1714536639475,-500.0,0.00109589,120]
[325134210,1714536639487,-500.0,0.00109589,120]
[325134211,1714536639497,-500.0,0.00109589,120]
[325134212,1714536639506,-500.0,0.00109589,120]
[325134213,1714536639515,-500.41013726,0.00109589,120]
[325134214,1714536639528,-500.0,0.00109589,120]
[325134215,1714536639538,-500.0,0.00109589,120]
[325134216,1714536639549,-500.0,0.00109589,120]
[325134217,1714536639558,-500.0,0.00109589,120]
[325134218,1714536639567,-500.0,0.00109589,120]
[325134219,1714536639577,-612.01089784,0.00109589,120]
[325134220,1714536639586,-389.2782796,0.00109589,120]
[325134221,1714536639596,-500.0,0.00109589,120]
[325134222,1714536639605,-500.0,0.00109589,120]
[325134223,1714536639616,-505.75666535,0.00109589,120]
[325134224,1714536639625,-502.22030365,0.00109589,120]
[325134225,1714536639634,-500.0,0.00109589,120]
[325134226,1714536639643,-500.0,0.00109589,120]
[325134227,1714536639653,-501.01164287,0.00109589,120]
[325134228,1714536639662,-500.0,0.00109589,120]
[325134229,1714536639671,-500.0,0.00109589,120]
[325134230,1714536639680,-500.0,0.00109589,120]
[325134231,1714536639689,-610.58971537,0.00109589,120]
[325134232,1714536639699,-500.60969938,0.00109589,120]
[325134233,1714536639709,-500.0,0.00109589,120]
[325134234,1714536639719,-501.20557834,0.00109589,120]
[325134235,1714536639729,-500.0,0.00109589,120]
[325134237,1714536639738,-501.02780802,0.00109589,120]
[325134238,1714536639748,-500.60700252,0.00109589,120]
[325134240,1714536639758,-586.18014146,0.00109589,120]
[325134241,1714536639768,-502.1543697,0.00109589,120]
[325134242,1714536639777,-500.0,0.00109589,120]
[325134243,1714536639786,-500.0,0.00109589,120]
[325134244,1714536639797,-501.24470327,0.00109589,120]
[325134245,1714536639807,-580.19282062,0.00109589,120]
[325134246,1714536639818,-500.0,0.00109589,120]
[325134247,1714536639827,-502.61315994,0.00109589,120]
[325134248,1714536639900,-940.2,0.00109589,2]
[325134249,1714536639910,-190.33138531,0.00109589,120]
[325134250,1714536639919,-500.0,0.00109589,120]
[325134251,1714536639929,-500.40352829,0.00109589,120]
[325134253,1714536639939,-501.18357816,0.00109589,120]
[325134254,1714536639948,-500.0,0.00109589,120]
[325134256,1714536639957,-500.0,0.00109589,120]
[325134257,1714536639966,-500.0,0.00109589,120]
[325134258,1714536639975,-300.0,0.00109589,2]
[325134259,1714536639985,-500.0,0.00109589,120]
[325134260,1714536639994,-500.8854528,0.00109589,120]
[325134261,1714536640004,-500.0,0.00109589,120]
[325134262,1714536640013,-501.23001466,0.00109589,120]
[325134264,1714536640022,-500.42909893,0.00109589,120]
[325134265,1714536640032,-500.0,0.00109589,120]
[325134267,1714536640041,-500.0,0.00109589,120]
[325134269,1714536640051,-500.0,0.00109589,120]
[325134271,1714536640060,-500.0,0.00109589,120]
[325134273,1714536640069,-500.0,0.00109589,120]
[325134275,1714536640079,-500.0,0.00109589,120]
[325134277,1714536640088,-500.0,0.00109589,120]
[325134279,1714536640097,-500.0,0.00109589,120]
[325134281,1714536640107,-643.73274791,0.00109589,120]
[325134283,1714536640116,-500.0,0.00109589,120]
[325134285,1714536640124,-500.0,0.00109589,120]
[325134287,1714536640134,-501.43122358,0.00109589,120]
[325134289,1714536640143,-575.5951722,0.00109589,120]
[325134291,1714536640153,-500.0,0.00109589,120]
[325134293,1714536640162,-352.00961747,0.00109589,120]
[325134295,1714536640171,-501.86196545,0.00109589,3]
[325134297,1714536640181,-500.0,0.00109589,120]
[325134299,1714536640190,-500.0,0.00109589,120]
[325134301,1714536640200,-500.33285864,0.00109589,120]
[325134303,1714536640209,-500.0,0.00109589,120]
[325134305,1714536640219,-500.0,0.00109589,120]
[325134307,1714536640228,-500.37428933,0.00109589,120]
[325134308,1714536640237,-543.43716989,0.00109589,120]
[325134310,1714536640246,-500.63227021,0.00109589,120]
[325134312,1714536640256,-2284.63,0.00109589,120]
[325134313,1714536640265,-501.79594019,0.00109589,120]
[325134314,1714536640275,-500.0,0.00109589,120]
[325134315,1714536640284,-501.16317078,0.00109589,120]
[325134317,1714536640294,-531.76722986,0.00109589,120]
[325134319,1714536640304,-501.09806989,0.00109589,120]
[325134321,1714536640313,-500.0,0.00109589,120]
[325134322,1714536640323,-500.0,0.00109589,120]
[325134323,1714536640332,-500.0,0.00109589,120]
[325134325,1714536640341,-501.34792112,0.00109589,120]
[325134327,1714536640351,-921.92,0.00109589,120]
[325134328,1714536640360,-500.0,0.00109589,120]
[325134329,1714536640370,-501.5512072,0.00109589,120]
[325134330,1714536640379,-501.02517699,0.00109589,120]
[325134331,1714536640389,-500.0,0.00109589,120]
[325134332,1714536640398,-500.0,0.00109589,120]
[325134333,1714536640408,-502.33912978,0.00109589,120]
[325134334,1714536640417,-565.83795188,0.00109589,120]
[325134335,1714536640427,-529.97634665,0.00109589,120]
[325134336,1714536640437,-635.58,0.00109589,120]
[325134337,1714536640451,-157.36028237,0.00109589,120]
[325134338,1714536640460,-500.0,0.00109589,120]
[325134339,1714536640470,-4543.8792134,0.00109589,120]
[325134340,1714536640479,-500.56910836,0.00109589,120]
[325134341,1714536640489,-504.77645063,0.00109589,120]
[325134342,1714536640498,-501.03050551,0.00109589,120]
[325134343,1714536640507,-501.14754369,0.00109589,120]
[325134344,1714536640516,-500.0,0.00109589,120]
[325134345,1714536640529,-541.41588124,0.00109589,120]
[325134346,1714536640539,-500.0,0.00109589,120]
[325134347,1714536640548,-500.19057199,0.00109589,120]
[325134348,1714536640558,-500.0,0.00109589,120]
[325134349,1714536640567,-502.4336532,0.00109589,120]
[325134350,1714536640576,-500.80908163,0.00109589,2]
[325134351,1714536640585,-494.24977109,0.00109589,120]
[325134352,1714536640595,-502.21290731,0.00109589,120]
[325134353,1714536640604,-500.0,0.00109589,120]
[325134354,1714536640612,-500.0,0.00109589,120]
[325134355,1714536640622,-500.0,0.00109589,120]
[325134356,1714536640631,-500.0,0.00109589,120]
[325134357,1714536640640,-500.0,0.00109589,120]
[325134358,1714536640649,-500.0,0.00109589,120]
[325134359,1714536640659,-500.0,0.00109589,120]
[325134360,1714536640669,-500.0,0.00109589,120]
[325134361,1714536640678,-500.0,0.00109589,120]
[325134362,1714536640686,-501.4476703,0.00109589,120]
[325134363,1714536640696,-513.78525612,0.00109589,120]
[325134364,1714536640705,-595.93407744,0.00109589,120]
[325134365,1714536640714,-500.0,0.00109589,120]
[325134366,1714536640723,-500.0,0.00109589,120]
[325134367,1714536640733,-486.96603842,0.00109589,120]
[325134368,1714536640742,-500.0,0.00109589,120]
[325134369,1714536640751,-500.0,0.00109589,120]
[325134370,1714536640760,-501.74569118,0.00109589,120]
[325134371,1714536640769,-500.0,0.00109589,120]
[325134372,1714536640778,-500.0,0.00109589,120]
[325134373,1714536640788,-500.0,0.00109589,120]
[325134374,1714536640798,-500.30062697,0.00109589,120]
[325134375,1714536640807,-500.0,0.00109589,120]
[325134376,1714536640816,-500.0,0.00109589,120]
[325134377,1714536640826,-500.0,0.00109589,120]
[325134378,1714536640835,-487.1362537,0.00109589,120]
[325134379,1714536640845,-500.0,0.00109589,120]
[325134380,1714536640854,-500.0,0.00109589,120]
[325134381,1714536640863,-500.0,0.00109589,120]
[325134382,1714536640873,-500.0,0.00109589,120]
[325134383,1714536640882,-500.0,0.00109589,120]
[325134384,1714536640891,-227.07133085,0.00109589,120]
[325134385,1714536640900,-500.0,0.00109589,120]
[325134386,1714536640910,-500.0,0.00109589,120]
[325134387,1714536640919,-500.0,0.00109589,120]
[325134388,1714536640928,-500.0,0.00109589,120]
[325134389,1714536640938,-500.0,0.00109589,120]
[325134390,1714536640947,-160.06376333,0.00109589,2]
[325134391,1714536640956,-500.0,0.00109589,120]
[325134392,1714536640966,-500.0,0.00109589,120]
[325134393,1714536640975,-500.0,0.00109589,120]
[325134394,1714536640984,-500.0,0.00109589,120]
[325134395,1714536640995,-505.10575989,0.00109589,120]
[325134396,1714536641004,-2130.64,0.00109589,120]
[325134397,1714536641013,-500.0,0.00109589,120]
[325134398,1714536641022,-500.0,0.00109589,120]
[325134399,1714536641031,-500.0,0.00109589,120]
[325134400,1714536641040,-257.30939426,0.00109589,2]
[325134401,1714536641052,-500.0,0.00109589,120]
[325134402,1714536641061,-500.0,0.00109589,120]
[325134403,1714536641071,-500.0,0.00109589,120]
[325134404,1714536641079,-500.0,0.00109589,2]
[325134405,1714536641088,-500.0,0.00109589,120]
[325134406,1714536641098,-1250.0,0.00109589,120]
[325134407,1714536641106,-2049.74,0.00109589,120]
[325134408,1714536641116,-500.0,0.00109589,120]
[325134409,1714536641125,-500.17561882,0.00109589,2]
[325134410,1714536641134,-500.0,0.00109589,120]
[325134411,1714536641144,-500.0,0.00109589,120]
[325134412,1714536641153,-1250.0,0.00109589,120]
[325134413,1714536641162,-500.0,0.00109589,120]
[325134414,1714536641172,-500.0,0.00109589,120]
[325134415,1714536641181,-500.0,0.00109589,120]
[325134416,1714536641190,-1677.93,0.00109589,120]
[325134417,1714536641200,-500.0,0.00109589,120]
[325134418,1714536641209,-500.0,0.00109589,120]
[325134419,1714536641219,-621.85189966,0.00109589,120]
[325134420,1714536641228,-506.11602244,0.00109589,120]
[325134421,1714536641238,-500.0,0.00109589,120]
[325134422,1714536641247,-510.57560855,0.00109589,120]
[325134423,1714536641257,-500.0,0.00109589,120]
[325134424,1714536641266,-500.0,0.00109589,120]
[325134425,1714536641336,-500.0,0.00109589,120]
[325134426,1714536641347,-500.0,0.00109589,120]
[325134427,1714536641357,-1000.0,0.00109589,120]
[325134428,1714536641367,-500.0,0.00109589,120]
[325134429,1714536641376,-500.0,0.00109589,120]
[325134430,1714536641385,-500.0,0.00109589,120]
[325134431,1714536641395,-500.0,0.00109589,120]
[325134432,1714536641404,-500.0,0.00109589,120]
[325134433,1714536641413,-500.0,0.00109589,120]
[325134434,1714536641423,-500.0,0.00109589,120]
[325134435,1714536641433,-500.0,0.00109589,120]
[325134436,1714536641446,-500.0,0.00109589,120]
[325134437,1714536641455,-2058.95,0.00109589,120]
[325134438,1714536641465,-500.0,0.00109589,120]
[325134439,1714536641474,-500.0,0.00109589,120]
[325134440,1714536641485,-500.0,0.00109589,120]
[325134441,1714536641494,-500.0,0.00109589,120]
[325134442,1714536641503,-500.0,0.00109589,120]
[325134443,1714536641512,-500.0,0.00109589,120]
[325134444,1714536641524,-501.58400886,0.00109589,120]
[325134445,1714536641534,-500.0,0.00109589,120]
[325134446,1714536641543,-500.0,0.00109589,120]
[325134447,1714536641555,-1670.39,0.00109589,120]
[325134448,1714536641564,-500.0,0.00109589,120]
[325134449,1714536641574,-500.0,0.00109589,120]
[325134450,1714536641583,-540.29187084,0.00109589,120]
[325134451,1714536641592,-500.0,0.00109589,120]
[325134452,1714536641602,-500.0,0.00109589,120]
[325134453,1714536641612,-1204.64,0.00109589,120]
[325134454,1714536641622,-500.4208791,0.00109589,120]
[325134455,1714536641631,-500.0,0.00109589,120]
[325134456,1714536641640,-3452.44,0.00109589,2]
[325134457,1714536641650,-500.0,0.00109589,120]
[325134458,1714536641659,-2906.21,0.00109589,120]
[325134459,1714536641668,-500.0,0.00109589,120]
[325134460,1714536641677,-500.0,0.00109589,120]
[325134461,1714536641686,-500.0,0.00109589,120]
[325134462,1714536641695,-2034.82,0.00109589,120]
[325134463,1714536641704,-500.0,0.00109589,120]
[325134464,1714536641713,-500.0,0.00109589,120]
[325134465,1714536641723,-500.0,0.00109589,120]
[325134466,1714536641732,-500.0,0.00109589,120]
[325134467,1714536641741,-500.0,0.00109589,120]
[325134468,1714536641750,-502.70994668,0.00109589,120]
[325134469,1714536641760,-501.31830057,0.00109589,120]
[325134470,1714536641769,-500.0,0.00109589,120]
[325134471,1714536641778,-502.48712751,0.00109589,120]
[325134472,1714536641787,-520.12060003,0.00109589,120]
[325134473,1714536641797,-500.0,0.00109589,120]
[325134474,1714536641806,-563.96,0.00109589,120]
[325134475,1714536641815,-502.16659497,0.00109589,120]
[325134476,1714536641826,-500.0,0.00109589,120]
[325134477,1714536641835,-500.0,0.00109589,120]
[325134478,1714536641844,-500.0,0.00109589,120]
[325134479,1714536641854,-500.0,0.00109589,120]
[325134480,1714536641863,-500.0,0.00109589,120]
[325134481,1714536641872,-500.0,0.00109589,120]
[325134482,1714536641882,-501.2614672,0.00109589,120]
[325134483,1714536641892,-500.0,0.00109589,120]
[325134484,1714536641901,-500.0,0.00109589,120]
[325134485,1714536641910,-500.0,0.00109589,120]
[325134486,1714536641919,-1813.67,0.00109589,120]
[325134487,1714536641928,-500.0,0.00109589,120]
[325134488,1714536641937,-1010.41,0.00109589,120]
[325134489,1714536641947,-500.0,0.00109589,120]
[325134490,1714536641956,-502.87049037,0.00109589,120]
[325134491,1714536641965,-500.0,0.00109589,120]
[325134492,1714536641974,-500.0,0.00109589,120]
[325134493,1714536641983,-500.52176198,0.00109589,120]
[325134494,1714536641992,-372.66724936,0.00109589,120]
[325134495,1714536642002,-500.0,0.00109589,120]
[325134496,1714536642012,-500.31821717,0.00109589,120]
[325134497,1714536642022,-500.0,0.00109589,120]
[325134498,1714536642031,-500.0,0.00109589,120]
[325134499,1714536642041,-500.0,0.00109589,120]
[325134500,1714536642051,-500.0,0.00109589,120]
[325134501,1714536642062,-505.94488032,0.00109589,120]
[325134502,1714536642071,-500.0,0.00109589,20]
[325134503,1714536642080,-500.0,0.00109589,120]
[325134504,1714536642090,-500.0,0.00109589,120]
[325134505,1714536642099,-500.0,0.00109589,120]
[325134506,1714536642109,-500.0,0.00109589,120]
[325134507,1714536642118,-500.0,0.00109589,120]
[325134508,1714536642128,-500.0,0.00109589,120]
[325134509,1714536642137,-501.10882373,0.00109589,120]
[325134510,1714536642146,-503.99982355,0.00109589,120]
[325134511,1714536642155,-545.13117684,0.00109589,120]
[325134512,1714536642165,-500.0,0.00109589,120]
[325134513,1714536642174,-807.95,0.00109589,120]
[325134514,1714536642183,-501.0730406,0.00109589,7]
[325134515,1714536642194,-500.43414424,0.00109589,120]
[325134516,1714536642203,-523.47522486,0.00109589,120]
[325134517,1714536642213,-500.75853599,0.00109589,120]
[325134518,1714536642223,-500.91228663,0.00109589,120]
[325134519,1714536642232,-500.4323923,0.00109589,120]
[325134520,1714536642242,-500.0,0.00109589,120]
[325134521,1714536642251,-500.0,0.00109589,120]
[325134522,1714536642260,-500.0,0.00109589,120]
[325134523,1714536642270,-501.09171424,0.00109589,120]
[325134524,1714536642279,-500.0,0.00109589,120]
[325134525,1714536642289,-586.6582426,0.00109589,120]
[325134526,1714536642299,-527.43275641,0.00109589,120]
[325134527,1714536642308,-500.0,0.00109589,120]
[325134528,1714536642317,-500.0,0.00109589,120]
[325134529,1714536642326,-500.0,0.00109589,120]
[325134530,1714536642335,-564.33,0.00109589,120]
[325134531,1714536642344,-500.0,0.00109589,120]
[325134532,1714536642354,-500.0,0.00109589,120]
[325134533,1714536642363,-500.81839411,0.00109589,120]
[325134534,1714536642372,-500.0,0.00109589,120]
[325134535,1714536642381,-500.0,0.00109589,120]
[325134536,1714536642390,-501.83913629,0.00109589,120]
[325134537,1714536642400,-411.54856075,0.00109589,120]
[325134538,1714536642409,-390.35288865,0.00109589,120]
[325134539,1714536642418,-500.0,0.00109589,120]
[325134540,1714536642428,-581.98,0.00109589,120]
[325134541,1714536642438,-509.55728924,0.00109589,120]
[325134542,1714536642452,-500.0,0.00109589,120]
[325134543,1714536642462,-500.51115075,0.00109589,120]
[325134544,1714536642471,-500.0,0.00109589,120]
[325134545,1714536642480,-184.8153411,0.00109589,120]
[325134546,1714536642490,-500.0,0.00109589,120]
[325134547,1714536642500,-500.0,0.00109589,120]
[325134548,1714536642510,-500.0,0.00109589,120]
[325134549,1714536642520,-503.05035191,0.00109589,120]
[325134550,1714536642529,-504.60657867,0.00109589,120]
[325134551,1714536642539,-500.30006974,0.00109589,120]
[325134552,1714536642549,-500.0,0.00109589,120]
[325134553,1714536642558,-500.0,0.00109589,120]
[325134554,1714536642567,-500.0,0.00109589,120]
[325134555,1714536642576,-500.0,0.00109589,120]
[325134556,1714536642586,-500.0,0.00109589,120]
[325134557,1714536642594,-501.39558512,0.00109589,120]
[325134558,1714536642604,-4149.97,0.00109589,120]
[325134560,1714536642614,-500.0,0.00109589,120]
[325134566,1714536642679,-500.0,0.00109589,120]
[325134567,1714536642690,-500.77543528,0.00109589,120]
[325134568,1714536642699,-500.0,0.00109589,120]
[325134569,1714536642708,-500.0,0.00109589,120]
[325134570,1714536642718,-500.0,0.00109589,120]
[325134572,1714536642728,-500.0,0.00109589,120]
[325134573,1714536642738,-500.0,0.00109589,120]
[325134574,1714536642748,-500.6678039,0.00109589,120]
[325134575,1714536642757,-500.0,0.00109589,120]
[325134576,1714536642767,-651.26,0.00109589,120]
[325134577,1714536642776,-449.72696002,0.00109589,120]
[325134578,1714536642785,-500.0,0.00109589,120]
[325134579,1714536642794,-605.39357917,0.00109589,120]
[325134580,1714536642804,-500.0,0.00109589,120]
[325134581,1714536642813,-500.0,0.00109589,120]
[325134583,1714536642822,-500.0,0.00109589,120]
[325134585,1714536642831,-500.21054565,0.00109589,120]
[325134588,1714536642842,-500.0,0.00109589,120]
[325134590,1714536642851,-500.0,0.00109589,120]
[325134592,1714536642860,-500.0,0.00109589,120]
[325134594,1714536642870,-2203.72,0.00109589,120]
[325134596,1714536642879,-830.17,0.00109589,120]
[325134598,1714536642888,-500.0,0.00109589,120]
[325134600,1714536642897,-500.0,0.00109589,120]
[325134602,1714536642906,-517.44964819,0.00109589,120]
[325134604,1714536642916,-500.0,0.00109589,120]
[325134606,1714536642925,-500.0,0.00109589,120]
[325134608,1714536642934,-646.96111873,0.00109589,120]
[325134610,1714536642943,-500.0,0.00109589,120]
[325134612,1714536642953,-504.1658436,0.00109589,120]
[325134614,1714536642962,-3716.94,0.00109589,120]
[325134616,1714536642972,-500.0,0.00109589,120]
[325134618,1714536642981,-500.0,0.00109589,120]
[325134619,1714536642990,-500.0,0.00109589,120]
[325134620,1714536642999,-502.79173737,0.00109589,120]
[325134621,1714536643008,-500.0,0.00109589,120]
[325134622,1714536643017,-500.0,0.00109589,120]
[325134623,1714536643026,-500.0,0.00109589,120]
[325134624,1714536643035,-500.0,0.00109589,120]
[325134625,1714536643045,-500.0,0.00109589,120]
[325134626,1714536643056,-500.0,0.00109589,120]
[325134627,1714536643065,-541.64934852,0.00109589,120]
[325134628,1714536643075,-500.0,0.00109589,120]
[325134629,1714536643084,-500.0,0.00109589,120]
[325134630,1714536643093,-500.0,0.00109589,120]
[325134631,1714536643102,-500.0,0.00109589,120]
[325134632,1714536643112,-624.97327538,0.00109589,120]
[325134633,1714536643122,-500.0,0.00109589,120]
[325134634,1714536643131,-500.0,0.00109589,120]
[325134635,1714536643141,-500.0,0.00109589,120]
[325134636,1714536643150,-500.0,0.00109589,120]
[325134637,1714536643160,-501.66808483,0.00109589,120]
[325134638,1714536643169,-506.72546066,0.00109589,120]
[325134639,1714536643179,-501.87953849,0.00109589,120]
[325134640,1714536643189,-1143.06,0.00109589,120]
[325134641,1714536643199,-512.90203726,0.00109589,120]
[325134642,1714536643208,-500.0,0.00109589,120]
[325134643,1714536643218,-500.0,0.00109589,120]
[325134644,1714536643227,-500.0,0.00109589,60]
[325134645,1714536643237,-500.0,0.00109589,120]
[325134646,1714536643247,-500.0,0.00109589,120]
[325134647,1714536643256,-616.90042417,0.00109589,120]
[325134648,1714536643265,-501.3336414,0.00109589,120]
[325134649,1714536643275,-11589.3,0.00109589,120]
[325134650,1714536643284,-477.38311973,0.00109589,120]
[325134651,1714536643294,-551.86443502,0.00109589,120]
[325134652,1714536643303,-500.0,0.00109589,120]
[325134653,1714536643313,-313.28276725,0.00109589,120]
[325134654,1714536643322,-500.0,0.00109589,120]
[325134655,1714536643332,-520.24537118,0.00109589,120]
[325134656,1714536643341,-252.37482425,0.00109589,120]
[325134657,1714536643351,-501.5383765,0.00109589,120]
[325134658,1714536643360,-314.27036028,0.00109589,120]
[325134659,1714536643370,-500.0,0.00109589,120]
[325134660,1714536643379,-500.0,0.00109589,120]
[325134661,1714536643388,-503.52158863,0.00109589,120]
[325134662,1714536643398,-500.0,0.00109589,120]
[325134663,1714536643407,-500.0,0.00109589,120]
[325134664,1714536643417,-501.86588289,0.00109589,120]
[325134665,1714536643426,-500.0,0.00109589,120]
[325134666,1714536643438,-500.0,0.00109589,120]
[325134667,1714536643449,-500.0,0.00109589,21]
[325134668,1714536643459,-500.0,0.00109589,120]
[325134669,1714536643469,-500.0,0.00109589,120]
[325134670,1714536643479,-500.0,0.00109589,7]
[325134671,1714536643489,-500.0,0.00109589,120]
[325134672,1714536643498,-1672.97,0.00109589,120]
[325134673,1714536643508,-500.0,0.00109589,120]
[325134674,1714536643517,-501.22007602,0.00109589,120]
[325134675,1714536643527,-500.0,0.00109589,120]
[325134676,1714536643536,-500.0,0.00109589,120]
[325134677,1714536643546,-517.02177769,0.00109589,120]
[325134678,1714536643556,-500.0,0.00109589,120]
[325134679,1714536643565,-501.19913623,0.00109589,120]